[Event "*** SCC Grand Prix: Titled Tuesday Blitz"]
[Site "Chess.com"]
[Date "2020.08.25"]
[Round "1"]
[White "annamaja"]
[Black "olksuna"]
[Result "0-1"]
[WhiteElo "2277"]
[BlackElo "2612"]
[TimeControl "180+1"]
[EndTime "10:07:47 PDT"]
[Termination "olksuna won by checkmate"]

1. e4 {[%clk 0:03:00.9]} 1... d6 {[%clk 0:02:59.2]} 2. d4 {[%clk 0:03:00.6]}
2... Nf6 {[%clk 0:02:59.7]} 3. Nc3 {[%clk 0:03:00.6]} 3... c6 {[%clk 0:03:00.4]}
4. Nf3 {[%clk 0:02:56.9]} 4... Bg4 {[%clk 0:02:59.8]} 5. Be2 {[%clk 0:02:55.5]}
5... e6 {[%clk 0:02:59.8]} 6. h3 {[%clk 0:02:51.1]} 6... Bh5 {[%clk 0:02:59.3]}
7. Be3 {[%clk 0:02:47.7]} 7... d5 {[%clk 0:02:59.2]} 8. e5 {[%clk 0:02:46.5]}
8... Nfd7 {[%clk 0:02:59.4]} 9. Qd2 {[%clk 0:02:40.9]} 9... c5 {[%clk
0:02:59.5]} 10. O-O {[%clk 0:02:28]} 10... Nc6 {[%clk 0:02:58.6]} 11. g4 {[%clk
0:01:37.8]} 11... Bg6 {[%clk 0:02:54.8]} 12. Nd1 {[%clk 0:01:34.3]} 12... Be7
{[%clk 0:02:37.3]} 13. c3 {[%clk 0:01:31.9]} 13... O-O {[%clk 0:02:36.8]} 14.
Bd3 {[%clk 0:01:29.2]} 14... Bxd3 {[%clk 0:02:35]} 15. Qxd3 {[%clk 0:01:30.1]}
15... f6 {[%clk 0:02:34.3]} 16. exf6 {[%clk 0:01:24.2]} 16... Bxf6 {[%clk
0:02:34.6]} 17. Kg2 {[%clk 0:01:15.7]} 17... Qb6 {[%clk 0:02:29.5]} 18. dxc5
{[%clk 0:01:03.4]} 18... Nxc5 {[%clk 0:02:28.5]} 19. Qe2 {[%clk 0:01:01.5]}
19... a5 {[%clk 0:02:27.6]} 20. Bxc5 {[%clk 0:00:54]} 20... Qxc5 {[%clk
0:02:27.3]} 21. Qxe6+ {[%clk 0:00:54.1]} 21... Kh8 {[%clk 0:02:27.7]} 22. Ne3
{[%clk 0:00:54.6]} 22... d4 {[%clk 0:02:15.7]} 23. cxd4 {[%clk 0:00:47.9]} 23...
Nxd4 {[%clk 0:02:15.8]} 24. Nxd4 {[%clk 0:00:44]} 24... Bxd4 {[%clk 0:02:13]}
25. Nf5 {[%clk 0:00:44.1]} 25... Bxb2 {[%clk 0:02:04.2]} 26. Rab1 {[%clk
0:00:43]} 26... Rae8 {[%clk 0:01:58.5]} 27. Qd7 {[%clk 0:00:37.2]} 27... Qc3
{[%clk 0:01:44.1]} 28. Qxb7 {[%clk 0:00:22.8]} 28... Rb8 {[%clk 0:01:43.4]} 29.
Qd7 {[%clk 0:00:17.7]} 29... g6 {[%clk 0:01:33.2]} 30. Nd6 {[%clk 0:00:10.1]}
30... Qf3+ {[%clk 0:01:28.7]} 31. Kg1 {[%clk 0:00:09.1]} 31... a4 {[%clk
0:01:07.3]} 32. Nc4 {[%clk 0:00:06.3]} 32... a3 {[%clk 0:01:03]} 33. Nxb2 {[%clk
0:00:05.3]} 33... axb2 {[%clk 0:01:00]} 34. Qd4+ {[%clk 0:00:05.5]} 34... Qf6
{[%clk 0:00:53.4]} 35. Rfd1 {[%clk 0:00:06.1]} 35... Qxd4 {[%clk 0:00:45.2]} 36.
Rxd4 {[%clk 0:00:07]} 36... Rfc8 {[%clk 0:00:45.6]} 37. Rdd1 {[%clk 0:00:02.8]}
37... Rc2 {[%clk 0:00:46]} 38. a4 {[%clk 0:00:01.8]} 38... Ra8 {[%clk
0:00:45.8]} 39. Kg2 {[%clk 0:00:02.1]} 39... Rxa4 {[%clk 0:00:46]} 40. Rd8+
{[%clk 0:00:02.4]} 40... Kg7 {[%clk 0:00:46.1]} 41. Rb8 {[%clk 0:00:03.1]} 41...
Ra2 {[%clk 0:00:42.7]} 42. g5 {[%clk 0:00:03.7]} 42... Kf7 {[%clk 0:00:40.2]}
43. Rb7+ {[%clk 0:00:03.7]} 43... Ke6 {[%clk 0:00:40.6]} 44. Kg3 {[%clk
0:00:03.8]} 44... Kd6 {[%clk 0:00:37.3]} 45. f4 {[%clk 0:00:03.7]} 45... Kc6
{[%clk 0:00:37.4]} 46. Rb8 {[%clk 0:00:03.9]} 46... Kc7 {[%clk 0:00:32.5]} 47.
Rb4 {[%clk 0:00:03.3]} 47... Kd6 {[%clk 0:00:31.3]} 48. Kg4 {[%clk 0:00:03.4]}
48... Rg2+ {[%clk 0:00:29.9]} 49. Kf3 {[%clk 0:00:03.9]} 49... Rh2 {[%clk
0:00:28.9]} 50. Kg3 {[%clk 0:00:04.1]} 50... Rc2 {[%clk 0:00:28.5]} 51. h4
{[%clk 0:00:04.6]} 51... Kc5 {[%clk 0:00:28.1]} 52. Rb8 {[%clk 0:00:04.9]} 52...
Ra3+ {[%clk 0:00:27.4]} 53. Kg4 {[%clk 0:00:01.5]} 53... Rg2# {[%clk 0:00:27.5]}
0-1

[Event "*** SCC Grand Prix: Titled Tuesday Blitz"]
[Site "Chess.com"]
[Date "2020.08.25"]
[Round "1"]
[White "Oleksandr_Bortnyk"]
[Black "kleopl"]
[Result "1-0"]
[WhiteElo "2936"]
[BlackElo "2447"]
[TimeControl "180+1"]
[EndTime "10:07:48 PDT"]
[Termination "Oleksandr_Bortnyk won by checkmate"]

1. e4 {[%clk 0:02:59.3]} 1... c6 {[%clk 0:02:59.1]} 2. d4 {[%clk 0:02:54.8]}
2... d5 {[%clk 0:03:00]} 3. Nc3 {[%clk 0:02:55.6]} 3... a6 {[%clk 0:02:59.2]} 4.
Nf3 {[%clk 0:02:49.2]} 4... Bg4 {[%clk 0:02:58.6]} 5. h3 {[%clk 0:02:43.6]} 5...
Bxf3 {[%clk 0:02:57.4]} 6. Qxf3 {[%clk 0:02:42.2]} 6... e6 {[%clk 0:02:57.7]} 7.
Be3 {[%clk 0:02:40.4]} 7... Nf6 {[%clk 0:02:56.9]} 8. e5 {[%clk 0:02:38.1]} 8...
Nfd7 {[%clk 0:02:56.7]} 9. Qg3 {[%clk 0:02:30.7]} 9... c5 {[%clk 0:02:54.2]} 10.
dxc5 {[%clk 0:02:31]} 10... Nc6 {[%clk 0:02:51.9]} 11. O-O-O {[%clk 0:02:30.6]}
11... Qa5 {[%clk 0:02:30.3]} 12. f4 {[%clk 0:02:17.4]} 12... g6 {[%clk
0:02:28.1]} 13. Bd2 {[%clk 0:02:00.5]} 13... Qxc5 {[%clk 0:02:18]} 14. Kb1
{[%clk 0:01:56.1]} 14... Bg7 {[%clk 0:02:10.1]} 15. a3 {[%clk 0:01:49.6]} 15...
Rc8 {[%clk 0:02:05.8]} 16. Bd3 {[%clk 0:01:42.5]} 16... b5 {[%clk 0:01:57.6]}
17. h4 {[%clk 0:01:21.1]} 17... b4 {[%clk 0:01:43.8]} 18. axb4 {[%clk
0:01:18.6]} 18... Nxb4 {[%clk 0:01:43.6]} 19. h5 {[%clk 0:01:19.2]} 19... Qa5
{[%clk 0:01:25.1]} 20. hxg6 {[%clk 0:01:14.2]} 20... hxg6 {[%clk 0:01:18.5]} 21.
Rxh8+ {[%clk 0:01:14.3]} 21... Bxh8 {[%clk 0:01:19.4]} 22. Bxg6 {[%clk
0:01:13.2]} 22... d4 {[%clk 0:01:06.6]} 23. Qh3 {[%clk 0:01:13.2]} 23... dxc3
{[%clk 0:00:51.3]} 24. Bxc3 {[%clk 0:00:58.1]} 24... Qa2+ {[%clk 0:00:35.6]} 25.
Kc1 {[%clk 0:00:58.1]} 25... Rxc3 {[%clk 0:00:34.4]} 26. Qxc3 {[%clk 0:00:45.4]}
26... Nd5 {[%clk 0:00:24.4]} 27. Qc8+ {[%clk 0:00:40.5]} 27... Ke7 {[%clk
0:00:24.3]} 28. Qxh8 {[%clk 0:00:37.2]} 28... fxg6 {[%clk 0:00:24.1]} 29. Rh1
{[%clk 0:00:37]} 29... Qa1+ {[%clk 0:00:22.7]} 30. Kd2 {[%clk 0:00:36.7]} 30...
Qa5+ {[%clk 0:00:22.5]} 31. c3 {[%clk 0:00:37.3]} 31... Nf8 {[%clk 0:00:18]} 32.
Qg7+ {[%clk 0:00:37.5]} 32... Ke8 {[%clk 0:00:18.3]} 33. Rh8 {[%clk 0:00:30.8]}
33... Qc5 {[%clk 0:00:17.9]} 34. Qxg6+ {[%clk 0:00:31.5]} 34... Kd7 {[%clk
0:00:16.6]} 35. Qf7+ {[%clk 0:00:27.6]} 35... Kc6 {[%clk 0:00:15.2]} 36. Qe8+
{[%clk 0:00:15.2]} 36... Nd7 {[%clk 0:00:14.6]} 37. Qc8+ {[%clk 0:00:15]} 37...
Nc7 {[%clk 0:00:14.7]} 38. Rd8 {[%clk 0:00:12.6]} 38... Qf2+ {[%clk 0:00:14.7]}
39. Kc1 {[%clk 0:00:13.1]} 39... Qe1+ {[%clk 0:00:14.8]} 40. Kc2 {[%clk
0:00:13.3]} 40... Qe4+ {[%clk 0:00:15.7]} 41. Kb3 {[%clk 0:00:13]} 41... Qd5+
{[%clk 0:00:15.4]} 42. c4 {[%clk 0:00:12.4]} 42... Qd3+ {[%clk 0:00:15.3]} 43.
Kb4 {[%clk 0:00:07.1]} 43... Qd2+ {[%clk 0:00:14.7]} 44. Ka3 {[%clk 0:00:07.2]}
44... Qa5+ {[%clk 0:00:14]} 45. Kb3 {[%clk 0:00:07.7]} 45... Nc5+ {[%clk
0:00:13.7]} 46. Kc2 {[%clk 0:00:07.6]} 46... Qa4+ {[%clk 0:00:14.5]} 47. Kd2
{[%clk 0:00:07.6]} 47... Qb4+ {[%clk 0:00:13.3]} 48. Ke3 {[%clk 0:00:07.5]}
48... Qb3+ {[%clk 0:00:13.3]} 49. Ke2 {[%clk 0:00:03.9]} 49... Qxb2+ {[%clk
0:00:12.9]} 50. Kf3 {[%clk 0:00:04.8]} 50... Qb3+ {[%clk 0:00:12.3]} 51. Kg4
{[%clk 0:00:05.2]} 51... Qc2 {[%clk 0:00:12]} 52. Rd6# {[%clk 0:00:05.1]} 1-0

[Event "*** SCC Grand Prix: Titled Tuesday Blitz"]
[Site "Chess.com"]
[Date "2020.08.25"]
[Round "1"]
[White "PattyCastillo"]
[Black "SARGISMV"]
[Result "0-1"]
[WhiteElo "1909"]
[BlackElo "2466"]
[TimeControl "180+1"]
[EndTime "10:07:49 PDT"]
[Termination "SARGISMV won on time"]

1. d4 {[%clk 0:02:59]} 1... e6 {[%clk 0:02:56.4]} 2. Nf3 {[%clk 0:02:57.8]} 2...
c5 {[%clk 0:02:57.3]} 3. e3 {[%clk 0:02:56.7]} 3... Nc6 {[%clk 0:02:56.7]} 4.
Bd3 {[%clk 0:02:56.1]} 4... Nf6 {[%clk 0:02:53.7]} 5. b3 {[%clk 0:02:55.4]} 5...
g6 {[%clk 0:02:54]} 6. Bb2 {[%clk 0:02:55.3]} 6... cxd4 {[%clk 0:02:54.2]} 7.
exd4 {[%clk 0:02:55.2]} 7... Bg7 {[%clk 0:02:54.8]} 8. O-O {[%clk 0:02:54.9]}
8... O-O {[%clk 0:02:55.2]} 9. Nbd2 {[%clk 0:02:54.8]} 9... d5 {[%clk
0:02:55.6]} 10. a3 {[%clk 0:02:53.1]} 10... a6 {[%clk 0:02:55.1]} 11. Qe2 {[%clk
0:02:53]} 11... Rb8 {[%clk 0:02:55.4]} 12. c4 {[%clk 0:02:51.6]} 12... dxc4
{[%clk 0:02:54.9]} 13. bxc4 {[%clk 0:02:51.8]} 13... Re8 {[%clk 0:02:52.1]} 14.
Rfd1 {[%clk 0:02:48.1]} 14... Qb6 {[%clk 0:02:50.7]} 15. Rab1 {[%clk 0:02:47]}
15... Qa7 {[%clk 0:02:44.6]} 16. c5 {[%clk 0:02:27.1]} 16... Nd5 {[%clk
0:02:30.5]} 17. g3 {[%clk 0:02:17.8]} 17... e5 {[%clk 0:02:19.9]} 18. Bc4 {[%clk
0:01:57.4]} 18... Be6 {[%clk 0:02:01.7]} 19. Ng5 {[%clk 0:01:55.5]} 19... Nxd4
{[%clk 0:01:36.6]} 20. Bxd4 {[%clk 0:01:52.2]} 20... exd4 {[%clk 0:01:37.5]} 21.
Qf3 {[%clk 0:01:41.4]} 21... Nc3 {[%clk 0:01:23.3]} 22. Nxe6 {[%clk 0:01:35.4]}
22... fxe6 {[%clk 0:01:24.2]} 23. Rb6 {[%clk 0:01:09.6]} 23... Nxd1 {[%clk
0:01:09.4]} 24. Qxd1 {[%clk 0:01:07.9]} 24... Rbc8 {[%clk 0:01:09]} 25. Rxe6
{[%clk 0:01:02.8]} 25... Kh8 {[%clk 0:00:51.4]} 26. Rxe8+ {[%clk 0:00:59.2]}
26... Rxe8 {[%clk 0:00:45.6]} 27. Qa4 {[%clk 0:00:45.9]} 27... Re1+ {[%clk
0:00:40.7]} 28. Kg2 {[%clk 0:00:45.4]} 28... Qxc5 {[%clk 0:00:40.4]} 29. Qd7
{[%clk 0:00:37.6]} 29... Qc6+ {[%clk 0:00:39.3]} 30. Qxc6 {[%clk 0:00:32.6]}
30... bxc6 {[%clk 0:00:40.2]} 31. Bxa6 {[%clk 0:00:31.9]} 31... c5 {[%clk
0:00:26.3]} 32. a4 {[%clk 0:00:30.9]} 32... Ra1 {[%clk 0:00:19]} 33. Bb5 {[%clk
0:00:30]} 33... d3 {[%clk 0:00:17.5]} 34. Bxd3 {[%clk 0:00:27.4]} 34... Rd1
{[%clk 0:00:16]} 35. Bb5 {[%clk 0:00:20.1]} 35... Rxd2 {[%clk 0:00:15.9]} 36.
Kf3 {[%clk 0:00:18.7]} 36... Bd4 {[%clk 0:00:16.3]} 37. Ke4 {[%clk 0:00:17.6]}
37... Rxf2 {[%clk 0:00:17.2]} 38. Kd5 {[%clk 0:00:17.7]} 38... Ra2 {[%clk
0:00:17.4]} 39. h4 {[%clk 0:00:17.1]} 39... Kg7 {[%clk 0:00:17.9]} 40. g4 {[%clk
0:00:16.3]} 40... Kf6 {[%clk 0:00:18.3]} 41. h5 {[%clk 0:00:16.6]} 41... gxh5
{[%clk 0:00:18.1]} 42. gxh5 {[%clk 0:00:17.2]} 42... h6 {[%clk 0:00:19]} 43. Kc4
{[%clk 0:00:16.3]} 43... Kg5 {[%clk 0:00:19.4]} 44. Be8 {[%clk 0:00:15.9]} 44...
Ra1 {[%clk 0:00:18.8]} 45. Kb5 {[%clk 0:00:14.7]} 45... Kf4 {[%clk 0:00:19]} 46.
a5 {[%clk 0:00:13.3]} 46... Ke3 {[%clk 0:00:19.9]} 47. a6 {[%clk 0:00:13.3]}
47... Kd3 {[%clk 0:00:18.8]} 48. Bg6+ {[%clk 0:00:12.1]} 48... Kc3 {[%clk
0:00:19]} 49. Be8 {[%clk 0:00:08.8]} 49... c4 {[%clk 0:00:19.2]} 50. Bc6 {[%clk
0:00:06.3]} 50... Rb1+ {[%clk 0:00:19.2]} 51. Ka4 {[%clk 0:00:03.5]} 51... Kd3
{[%clk 0:00:16.8]} 0-1

[Event "*** SCC Grand Prix: Titled Tuesday Blitz"]
[Site "Chess.com"]
[Date "2020.08.25"]
[Round "1"]
[White "shineatchess"]
[Black "Fh2411"]
[Result "0-1"]
[WhiteElo "2212"]
[BlackElo "2540"]
[TimeControl "180+1"]
[EndTime "10:07:50 PDT"]
[Termination "Fh2411 won by resignation"]

1. e4 {[%clk 0:02:59.7]} 1... c5 {[%clk 0:02:57.2]} 2. d4 {[%clk 0:02:58.6]}
2... cxd4 {[%clk 0:02:56.3]} 3. c3 {[%clk 0:02:58.9]} 3... d5 {[%clk 0:02:49.2]}
4. exd5 {[%clk 0:02:56.8]} 4... Qxd5 {[%clk 0:02:48.4]} 5. cxd4 {[%clk
0:02:55.6]} 5... Nc6 {[%clk 0:02:45.4]} 6. Nf3 {[%clk 0:02:52.6]} 6... e6 {[%clk
0:02:44.8]} 7. Nc3 {[%clk 0:02:51.5]} 7... Qd8 {[%clk 0:02:35.2]} 8. Bd3 {[%clk
0:02:45.7]} 8... Nf6 {[%clk 0:02:35]} 9. O-O {[%clk 0:02:44.8]} 9... Be7 {[%clk
0:02:35.3]} 10. Bg5 {[%clk 0:02:40.1]} 10... O-O {[%clk 0:02:32.5]} 11. Rc1
{[%clk 0:02:35.1]} 11... Nb4 {[%clk 0:02:29.9]} 12. Bb1 {[%clk 0:02:29.1]} 12...
Bd7 {[%clk 0:02:29]} 13. Ne5 {[%clk 0:02:11.6]} 13... Bc6 {[%clk 0:02:11.8]} 14.
a3 {[%clk 0:01:57.5]} 14... Nbd5 {[%clk 0:02:09.5]} 15. Nxc6 {[%clk 0:01:55.8]}
15... bxc6 {[%clk 0:02:10.4]} 16. Qd3 {[%clk 0:01:52]} 16... g6 {[%clk
0:02:05.9]} 17. h4 {[%clk 0:01:36.4]} 17... Rb8 {[%clk 0:01:43.6]} 18. b4 {[%clk
0:01:26]} 18... a5 {[%clk 0:01:42.7]} 19. Nxd5 {[%clk 0:01:00]} 19... cxd5
{[%clk 0:01:40.6]} 20. b5 {[%clk 0:00:58.8]} 20... a4 {[%clk 0:01:35.7]} 21.
Bxf6 {[%clk 0:00:56.9]} 21... Bxf6 {[%clk 0:01:34.6]} 22. Rc6 {[%clk 0:00:48.8]}
22... Qa5 {[%clk 0:01:25.7]} 23. Qf3 {[%clk 0:00:30.4]} 23... Bxd4 {[%clk
0:01:14.2]} 24. h5 {[%clk 0:00:26]} 24... Qxb5 {[%clk 0:01:03]} 25. Rcc1 {[%clk
0:00:20.5]} 25... Qb2 {[%clk 0:00:39]} 26. hxg6 {[%clk 0:00:19.3]} 26... hxg6
{[%clk 0:00:39]} 27. Qg4 {[%clk 0:00:19]} 27... Bxf2+ {[%clk 0:00:32.3]} 28. Kh1
{[%clk 0:00:17.3]} 28... Qh8+ {[%clk 0:00:31.2]} 29. Qh3 {[%clk 0:00:16.1]}
29... Qxh3+ {[%clk 0:00:30.4]} 30. gxh3 {[%clk 0:00:17]} 30... Be3 {[%clk
0:00:28.5]} 31. Rce1 {[%clk 0:00:16]} 31... d4 {[%clk 0:00:27.5]} 32. Kg2 {[%clk
0:00:14.6]} 32... Rb3 {[%clk 0:00:27.1]} 33. Rf3 {[%clk 0:00:11.6]} 33... Rxa3
{[%clk 0:00:27]} 34. Ref1 {[%clk 0:00:11.8]} 34... Kg7 {[%clk 0:00:24.8]} 35.
Kg3 {[%clk 0:00:09]} 35... f5 {[%clk 0:00:23.2]} 36. h4 {[%clk 0:00:08.2]} 36...
e5 {[%clk 0:00:21.1]} 37. Kg2 {[%clk 0:00:07.8]} 37... e4 {[%clk 0:00:20.4]} 38.
Bxe4 {[%clk 0:00:06.8]} 38... Ra2+ {[%clk 0:00:18.9]} 39. Kh1 {[%clk 0:00:06.4]}
39... a3 {[%clk 0:00:17.5]} 40. Bd3 {[%clk 0:00:06.1]} 40... Rh8 {[%clk
0:00:17.4]} 41. Rh3 {[%clk 0:00:05.1]} 41... Rh6 {[%clk 0:00:16.1]} 42. Bc4
{[%clk 0:00:04.7]} 42... Rc2 {[%clk 0:00:15.9]} 43. Bb3 {[%clk 0:00:04.3]} 43...
Rb2 {[%clk 0:00:16.1]} 44. Be6 {[%clk 0:00:04.4]} 44... a2 {[%clk 0:00:16.5]}
45. Ra1 {[%clk 0:00:02.4]} 45... Rb1+ {[%clk 0:00:16.2]} 0-1

[Event "*** SCC Grand Prix: Titled Tuesday Blitz"]
[Site "Chess.com"]
[Date "2020.08.25"]
[Round "1"]
[White "The_Machine04"]
[Black "Violord"]
[Result "0-1"]
[WhiteElo "2288"]
[BlackElo "2623"]
[TimeControl "180+1"]
[EndTime "10:07:53 PDT"]
[Termination "Violord won on time"]

1. d4 {[%clk 0:03:00.9]} 1... Nf6 {[%clk 0:02:58.8]} 2. Bg5 {[%clk 0:03:00.5]}
2... Ne4 {[%clk 0:02:56.7]} 3. Bf4 {[%clk 0:03:00.6]} 3... d5 {[%clk 0:02:56.2]}
4. e3 {[%clk 0:03:00.9]} 4... c5 {[%clk 0:02:54.2]} 5. Bd3 {[%clk 0:03:01]} 5...
cxd4 {[%clk 0:02:53.2]} 6. exd4 {[%clk 0:03:01.9]} 6... Nc6 {[%clk 0:02:50.3]}
7. Bxe4 {[%clk 0:02:59]} 7... dxe4 {[%clk 0:02:49.2]} 8. Ne2 {[%clk 0:02:58.8]}
8... Bg4 {[%clk 0:02:44]} 9. Nbc3 {[%clk 0:02:56.1]} 9... e6 {[%clk 0:02:40.6]}
10. d5 {[%clk 0:02:30.5]} 10... exd5 {[%clk 0:02:24.8]} 11. Qxd5 {[%clk
0:02:31.4]} 11... Qxd5 {[%clk 0:02:18.6]} 12. Nxd5 {[%clk 0:02:32.3]} 12...
O-O-O {[%clk 0:02:15.2]} 13. Ne3 {[%clk 0:02:15.8]} 13... Bxe2 {[%clk
0:02:07.7]} 14. Kxe2 {[%clk 0:02:10]} 14... Nd4+ {[%clk 0:02:06.9]} 15. Ke1
{[%clk 0:02:07.7]} 15... Ne6 {[%clk 0:01:48.9]} 16. Bg3 {[%clk 0:01:51.2]} 16...
h5 {[%clk 0:01:47]} 17. h3 {[%clk 0:01:44.5]} 17... h4 {[%clk 0:01:44.7]} 18.
Bh2 {[%clk 0:01:44.1]} 18... g6 {[%clk 0:01:37.9]} 19. Be5 {[%clk 0:01:39.8]}
19... Rh5 {[%clk 0:01:36.5]} 20. Bf6 {[%clk 0:01:26.7]} 20... Rd7 {[%clk
0:01:33.7]} 21. Rd1 {[%clk 0:01:22.6]} 21... Bb4+ {[%clk 0:01:24.4]} 22. c3
{[%clk 0:01:14.3]} 22... Bc5 {[%clk 0:01:23]} 23. Rxd7 {[%clk 0:01:13.3]} 23...
Kxd7 {[%clk 0:01:22.1]} 24. Kd2 {[%clk 0:01:05.2]} 24... Nf4 {[%clk 0:01:18.7]}
25. Rd1 {[%clk 0:00:51]} 25... Ke6 {[%clk 0:01:15.7]} 26. Bd4 {[%clk 0:00:45.8]}
26... Bxd4 {[%clk 0:01:14.5]} 27. cxd4 {[%clk 0:00:46.7]} 27... Rg5 {[%clk
0:01:06.8]} 28. Rg1 {[%clk 0:00:38.5]} 28... Nxh3 {[%clk 0:01:01.6]} 29. Rh1
{[%clk 0:00:38.5]} 29... Nxf2 {[%clk 0:01:00.6]} 30. Rxh4 {[%clk 0:00:35.8]}
30... f5 {[%clk 0:00:59.8]} 31. d5+ {[%clk 0:00:14.6]} 31... Kd6 {[%clk
0:00:58.3]} 32. Kc3 {[%clk 0:00:14.6]} 32... Rg3 {[%clk 0:00:32.2]} 33. Kd4
{[%clk 0:00:14.1]} 33... b5 {[%clk 0:00:26.3]} 34. a4 {[%clk 0:00:12]} 34... Nd1
{[%clk 0:00:23.9]} 35. Nxf5+ {[%clk 0:00:07]} 35... gxf5 {[%clk 0:00:23.2]} 36.
Rh6+ {[%clk 0:00:07.1]} 36... Ke7 {[%clk 0:00:23.1]} 37. Ke5 {[%clk 0:00:06.9]}
37... e3 {[%clk 0:00:22.7]} 38. Rh7+ {[%clk 0:00:07]} 38... Kf8 {[%clk
0:00:22.2]} 39. Kf6 {[%clk 0:00:07.3]} 39... Kg8 {[%clk 0:00:21.3]} 40. Re7
{[%clk 0:00:07.4]} 40... f4 {[%clk 0:00:15.1]} 41. d6 {[%clk 0:00:07.5]} 41...
Kf8 {[%clk 0:00:10.5]} 42. Re4 {[%clk 0:00:03.5]} 42... Rg7 {[%clk 0:00:09]} 43.
Rxf4 {[%clk 0:00:01.6]} 43... Rf7+ {[%clk 0:00:08.9]} 44. Ke6 {[%clk 0:00:01.3]}
44... Rxf4 {[%clk 0:00:08.7]} 45. d7 {[%clk 0:00:02.2]} 45... Rd4 {[%clk
0:00:09.3]} 0-1

[Event "*** SCC Grand Prix: Titled Tuesday Blitz"]
[Site "Chess.com"]
[Date "2020.08.25"]
[Round "1"]
[White "novocane"]
[Black "MomchilPetkov"]
[Result "1-0"]
[WhiteElo "2261"]
[BlackElo "2551"]
[TimeControl "180+1"]
[EndTime "10:07:53 PDT"]
[Termination "novocane won on time"]

1. d4 {[%clk 0:02:40.3]} 1... Nf6 {[%clk 0:02:59.2]} 2. c4 {[%clk 0:02:40.4]}
2... e6 {[%clk 0:02:59.2]} 3. Nc3 {[%clk 0:02:40.4]} 3... Bb4 {[%clk 0:02:58.7]}
4. e3 {[%clk 0:02:40.8]} 4... O-O {[%clk 0:02:56.4]} 5. Ne2 {[%clk 0:02:39.1]}
5... Re8 {[%clk 0:02:53.6]} 6. a3 {[%clk 0:02:35.3]} 6... Bf8 {[%clk 0:02:51.6]}
7. e4 {[%clk 0:02:30.7]} 7... d6 {[%clk 0:02:23.2]} 8. f3 {[%clk 0:02:23]} 8...
e5 {[%clk 0:02:22.4]} 9. d5 {[%clk 0:02:19.6]} 9... Nh5 {[%clk 0:02:16]} 10. Be3
{[%clk 0:02:15.8]} 10... Nd7 {[%clk 0:02:11.3]} 11. g4 {[%clk 0:02:11]} 11...
Nf4 {[%clk 0:01:58.2]} 12. Nxf4 {[%clk 0:02:06.6]} 12... exf4 {[%clk 0:01:59.1]}
13. Bxf4 {[%clk 0:02:06.6]} 13... Ne5 {[%clk 0:01:59.6]} 14. Be2 {[%clk
0:02:06.3]} 14... h5 {[%clk 0:01:40.1]} 15. g5 {[%clk 0:01:34.1]} 15... Be7
{[%clk 0:01:34.9]} 16. h4 {[%clk 0:01:33.1]} 16... f6 {[%clk 0:01:26.8]} 17. Qd2
{[%clk 0:01:29]} 17... Rf8 {[%clk 0:01:18.3]} 18. Bxe5 {[%clk 0:01:07.5]} 18...
fxe5 {[%clk 0:01:17.7]} 19. O-O-O {[%clk 0:00:58.7]} 19... c5 {[%clk 0:01:15.1]}
20. f4 {[%clk 0:00:50]} 20... Rxf4 {[%clk 0:01:05.4]} 21. Bxh5 {[%clk
0:00:50.1]} 21... Rxh4 {[%clk 0:01:05.6]} 22. Rxh4 {[%clk 0:00:18.4]} 22... Bxg5
{[%clk 0:01:04]} 23. Rdh1 {[%clk 0:00:13]} 23... Bxd2+ {[%clk 0:00:25.8]} 24.
Kxd2 {[%clk 0:00:13.8]} 24... Qg5+ {[%clk 0:00:25.1]} 25. Kc2 {[%clk 0:00:13.1]}
25... Bd7 {[%clk 0:00:17.3]} 26. Kb3 {[%clk 0:00:12.8]} 26... Kf8 {[%clk
0:00:14.6]} 27. Bg4 {[%clk 0:00:10.3]} 27... Ke7 {[%clk 0:00:11.7]} 28. Bxd7
{[%clk 0:00:07.6]} 28... Kxd7 {[%clk 0:00:12.6]} 29. Rh7 {[%clk 0:00:06.6]}
29... Rf8 {[%clk 0:00:09.8]} 30. R1h5 {[%clk 0:00:06]} 30... Qg6 {[%clk
0:00:09.3]} 31. Rh1 {[%clk 0:00:05.5]} 31... Rf7 {[%clk 0:00:09.1]} 32. Rh8
{[%clk 0:00:05.4]} 32... a6 {[%clk 0:00:07.9]} 33. Rg8 {[%clk 0:00:05.9]} 33...
Kc7 {[%clk 0:00:07.9]} 34. Rhh8 {[%clk 0:00:06.2]} 34... Kb6 {[%clk 0:00:05.6]}
35. a4 {[%clk 0:00:06.5]} 35... Qg2 {[%clk 0:00:01.5]} 36. Rd8 {[%clk
0:00:05.9]} 36... Qg1 {[%clk 0:00:01.9]} 37. Rxd6+ {[%clk 0:00:05.3]} 37... Ka7
{[%clk 0:00:02.3]} 38. Rdd8 {[%clk 0:00:05.2]} 38... Qe1 {[%clk 0:00:02.3]} 39.
a5 {[%clk 0:00:05.4]} 39... b6 {[%clk 0:00:02.3]} 40. Ra8+ {[%clk 0:00:04.9]}
40... Kb7 {[%clk 0:00:02.5]} 41. Rhb8+ {[%clk 0:00:05.8]} 41... Kc7 {[%clk
0:00:03.1]} 42. Rxb6 {[%clk 0:00:05.9]} 1-0